bitfinex/quotes_ETHUSD_20250625
["timestamp","ask_amount","ask_price","bid_price","bid_amount"]
[1750879953908,0.38272779,2427.4,2427.0,4.32578555]
[1750879954102,0.2056,2427.5,2427.1,4.12012813]
[1750879954103,0.38272779,2427.3,2427.1,4.12012813]
[1750879954329,0.38272779,2427.2,2427.1,4.12012813]
[1750879955146,0.2056,2427.6,2427.3,4.11967282]
[1750879955321,0.17578596,2427.5,2427.3,4.11967282]
[1750879955520,0.2056,2427.6,2427.4,4.11963417]
[1750879955740,0.17632353,2427.5,2427.4,4.11963417]
[1750879956064,1.96394431,2427.5,2426.6,0.7782]
[1750879956344,1.96394431,2427.5,2427.0,4.32582298]
[1750879956345,1.15794089,2427.4,2427.0,4.32582298]
[1750879956647,1.15794089,2427.3,2427.1,4.12011213]
[1750879956811,0.17632011,2427.2,2427.1,4.12011213]
[1750879957726,0.17632011,2427.2,2427.1,4.32571213]
[1750879958044,4.11922401,2427.7,2427.2,4.11988474]
[1750879958212,1.15929538,2427.6,2427.1,0.2056]
[1750879958419,5.27878761,2427.5,2427.1,0.2056]
[1750879958614,1.70773414,2427.4,2427.1,0.2056]
[1750879958810,0.17637561,2427.3,2427.1,4.32572328]
[1750879959014,0.17637561,2427.2,2427.1,4.32572328]
[1750879959214,0.17637561,2427.2,2427.1,0.2056]
[1750879959621,0.17629487,2427.2,2427.0,4.12018396]
[1750879959854,0.17629487,2427.1,2427.0,4.12018396]
[1750879960070,0.17629487,2427.1,2426.9,0.2056]
[1750879960259,0.2056,2427.4,2427.1,4.12008067]
[1750879960456,0.1762444,2427.3,2427.2,4.11980664]
[1750879962036,0.2056,2427.6,2427.2,4.11980664]
[1750879962037,0.2056,2427.6,2427.3,4.11975651]
[1750879962241,1.15819489,2427.5,2427.3,4.11975651]
[1750879962465,0.1762056,2427.4,2427.2,4.11988041]
[1750879962639,0.1762056,2427.3,2427.2,4.11988041]
[1750879963451,0.2056,2427.6,2427.3,4.11965136]
[1750879963760,1.15800711,2427.5,2427.3,4.11965136]
[1750879964065,0.17616313,2427.4,2427.3,4.11965136]
[1750879964453,0.17616313,2427.4,2427.3,4.32525136]
[1750879964662,1.0116,2427.8,2427.4,4.1194701]
[1750879964960,1.0116,2427.8,2427.3,0.2056]
[1750879964961,1.15782628,2427.7,2427.5,4.11943307]
[1750879965163,0.17617675,2427.6,2427.5,4.11943307]
[1750879965334,2.11276,2427.8,2427.5,4.11943307]
[1750879965534,1.15782191,2427.7,2427.5,4.11943307]
[1750879965729,0.17617688,2427.6,2427.5,4.11943307]
[1750879965962,0.17617737,2427.6,2427.5,4.11943307]
[1750879966346,0.17617737,2427.6,2427.5,4.32503307]
[1750879966547,0.2056,2427.8,2427.7,4.11912509]
[1750879966762,0.38175849,2427.8,2427.7,4.11912509]
[1750879967146,0.17616012,2427.8,2427.5,2.048]
[1750879967469,11.18714704,2428.3,2428.0,4.11860961]
[1750879967642,1.15776242,2428.2,2428.1,4.1183816]
[1750879968032,1.15776242,2428.2,2427.7,0.8109]
[1750879968238,0.17621538,2428.1,2428.0,4.11861614]
[1750879968437,4.11735336,2428.8,2428.1,4.11844649]
[1750879968637,1.15765611,2428.7,2428.4,4.11783668]
[1750879968854,0.17622262,2428.6,2428.4,4.11784212]
[1750879969056,0.17622262,2428.5,2428.4,4.11784212]
[1750879969444,0.98134682,2428.8,2428.4,4.11784212]
[1750879969777,1.15756199,2428.7,2428.4,4.11784212]
[1750879969938,0.1761746,2428.6,2428.4,4.11784212]
[1750879970141,0.50984373,2428.8,2428.5,4.11776816]
[1750879970343,1.1574742,2428.7,2428.4,4.11788301]
[1750879970547,0.1761748,2428.6,2428.3,4.11802452]
[1750879970772,0.1761748,2428.5,2428.3,4.11802452]
[1750879970950,0.1761748,2428.4,2428.3,4.11802452]
[1750879971469,0.1761748,2428.4,2428.0,4.11851046]
[1750879971673,5.09885805,2428.7,2428.0,4.11851046]
[1750879971674,4.1178575,2428.5,2428.0,4.11851046]
[1750879971967,0.17620269,2428.4,2428.2,4.11826679]
[1750879972162,0.7563,2428.6,2428.3,4.11802693]
[1750879972473,0.7563,2428.6,2428.1,4.11835915]
[1750879972474,0.17620361,2428.5,2428.1,4.11835915]
[1750879972645,0.17620361,2428.4,2427.9,6.16675051]
[1750879972846,5.45953536,2428.6,2428.0,4.11847123]
[1750879973044,0.17617872,2428.5,2428.1,4.11843436]
[1750879973244,0.17617872,2428.4,2428.1,4.11843436]
[1750879973443,5.45953536,2428.6,2428.1,4.11843436]
[1750879973746,1.08631444,2428.5,2428.1,4.11843436]
[1750879973952,0.12861468,2428.4,2428.1,4.11842775]
[1750879974154,0.95769976,2428.5,2428.1,4.11842775]
[1750879974352,0.12861479,2428.4,2428.0,10.0]
[1750879974673,0.12861806,2428.3,2427.9,4.11876103]
[1750879974874,0.12862035,2428.2,2427.3,12.11218896]
[1750879975061,0.88972035,2428.1,2427.7,4.11902995]
[1750879975268,0.12863567,2428.0,2427.7,4.11900651]
[1750879975472,0.7611,2428.1,2427.7,4.11900651]
[1750879975669,0.12863572,2428.0,2427.7,4.11900651]
[1750879975872,0.7611,2428.1,2427.7,4.11900651]
[1750879976046,0.12863459,2428.0,2427.7,4.11900651]
[1750879976246,1.66086404,2428.1,2427.7,4.11900651]
[1750879976446,0.12863593,2428.0,2427.7,4.11900651]
[1750879976675,1.66086404,2428.1,2427.8,4.11885766]
[1750879976848,0.12863551,2428.0,2427.9,4.11878578]
[1750879977951,0.12863277,2428.0,2427.8,4.11886408]
[1750879978177,0.7611,2428.1,2427.8,4.11886408]
[1750879978449,0.2056,2428.0,2427.7,4.11909094]
[1750879978769,0.2056,2428.0,2427.8,4.11879565]
[1750879978949,8.6335749,2428.4,2427.9,4.11869536]
[1750879978950,0.2056,2428.1,2427.9,4.11869536]
[1750879979150,0.2056,2428.1,2428.0,4.11861614]
[1750879979346,0.33422587,2428.3,2427.9,4.32429314]
[1750879979561,0.76314306,2428.3,2427.9,4.32429314]
[1750879979779,4.88127393,2428.3,2427.9,0.2056]
[1750879979983,0.12862971,2428.2,2427.9,0.2056]
[1750879980185,4.11698972,2429.0,2428.2,10.0]
[1750879980399,4.11735503,2428.8,2428.3,4.11808267]
[1750879980894,4.11735503,2428.8,2428.2,10.0]
[1750879980895,4.11744821,2428.7,2428.2,4.11819732]
[1750879981050,4.11812113,2428.3,2427.8,4.11887085]
[1750879981248,0.803,2428.5,2427.3,2.8601]
[1750879981450,0.128629,2428.4,2427.3,2.8601]
[1750879981681,0.12863924,2428.3,2427.8,4.11880055]
[1750879981853,0.12863924,2428.2,2427.8,4.11880055]
[1750879982053,5.72142898,2428.3,2427.8,4.11880055]
[1750879982374,0.12863395,2428.2,2427.8,4.11880055]
[1750879982577,0.12863789,2428.1,2427.5,4.11937299]
[1750879982779,0.12863789,2428.0,2427.5,4.11937299]
[1750879982977,4.11858529,2428.1,2427.5,4.11937299]
[1750879983174,5.16190028,2428.0,2427.5,4.11937299]
[1750879983373,0.91460354,2428.0,2427.6,4.11927462]
[1750879983571,0.91460354,2428.0,2427.4,4.11960993]
[1750879983572,4.11852918,2428.1,2427.5,4.1193768]
[1750879983865,0.12864314,2428.0,2427.5,4.1193768]
[1750879984077,0.12864314,2427.9,2427.5,4.1193768]
[1750879984276,0.12864314,2427.9,2427.4,4.11956256]
[1750879984277,4.11879577,2427.9,2427.4,4.11956256]
[1750879984472,4.11879577,2427.9,2427.0,0.7911]
[1750879984473,4.11910159,2427.8,2427.0,0.7911]
[1750879984695,4.11886522,2427.9,2427.4,4.11963202]
[1750879984869,11.32065966,2428.0,2427.5,4.11943196]
[1750879985076,0.1286514,2427.9,2427.7,4.11900158]
[1750879985276,0.44317028,2428.1,2427.7,4.11900158]
[1750879985572,0.12864657,2428.0,2427.7,4.11900158]
[1750879985906,0.12864657,2427.9,2427.6,4.11920879]
[1750879986116,4.56162902,2428.1,2427.6,4.11920879]
[1750879986270,5.72839878,2428.0,2427.5,4.11945354]
[1750879986470,0.12864895,2427.9,2427.5,4.11945354]
[1750879986685,4.11882649,2427.9,2427.4,4.11955277]
[1750879986891,0.1286485,2427.8,2427.5,4.11945355]
[1750879987286,0.1286485,2427.8,2427.7,4.11912509]
[1750879987597,0.44317028,2428.1,2427.8,4.11885392]
[1750879988576,0.44317028,2428.1,2427.7,4.11904148]
[1750879988775,5.54492216,2428.1,2427.5,4.11933594]
[1750879989206,4.11879424,2427.9,2427.1,10.0]
[1750879989500,0.12864784,2427.8,2427.4,4.11953441]
[1750879989681,6.88286517,2428.0,2427.5,4.11943628]
[1750879989906,0.12865365,2427.9,2427.5,4.11943628]
[1750879990106,7.86637456,2428.0,2427.5,4.11943628]
[1750879990312,1.19471984,2427.9,2427.5,4.32503628]
[1750879990512,0.12865277,2427.8,2427.5,4.32503628]
[1750879990715,5.18488535,2427.9,2427.5,0.2056]
[1750879990920,5.18488535,2427.9,2427.1,10.0]
[1750879990921,4.11937353,2427.6,2427.0,2.8161]
[1750879991106,4.32501353,2427.6,2427.1,0.2056]
[1750879991301,4.76818381,2427.6,2427.1,4.3257224]
[1750879991503,4.76818381,2427.6,2427.2,4.11996614]
[1750879991504,0.64877028,2427.6,2427.2,4.11996614]
[1750879992132,4.76807622,2427.6,2427.2,4.11996614]
[1750879992303,0.12866634,2427.5,2427.1,0.2056]
[1750879992503,0.2056,2427.6,2427.2,4.11980539]
[1750879992709,0.2056,2427.6,2427.1,4.32568798]
[1750879993004,4.24815789,2427.5,2427.1,4.32573284]
[1750879993204,4.11949192,2427.5,2427.1,0.2056]
[1750879993619,0.12867,2427.4,2427.1,4.32566611]
[1750879993832,4.83998248,2427.6,2427.1,4.32566611]
[1750879994001,5.94397858,2427.5,2427.1,0.2056]
[1750879994202,5.81530749,2427.5,2427.1,0.2056]
[1750879994399,1.6957553,2427.5,2427.1,4.32570034]
[1750879994700,0.72060588,2427.6,2427.2,4.11985263]
[1750879995041,0.12866411,2427.5,2427.2,4.11985263]
[1750879995206,0.72060588,2427.6,2427.2,4.11985263]
[1750879995406,4.24815945,2427.5,2427.1,0.2056]
[1750879995706,1.70863141,2427.5,2427.2,4.11995668]
[1750879996043,12.11761963,2427.7,2427.1,4.32572991]
[1750879996044,0.8254,2427.7,2427.5,4.11946446]
[1750879996212,0.8254,2427.7,2427.4,4.11954314]
[1750879996534,0.8151,2427.9,2427.7,4.11912509]
[1750879996701,0.12864649,2427.8,2427.7,4.11912509]
[1750879997107,0.2056,2428.0,2427.8,4.11895543]
[1750879997635,0.2056,2428.0,2427.9,4.11878578]
[1750879997844,0.3342405,2428.0,2427.9,4.11878578]
[1750879998026,0.33423793,2428.0,2427.9,4.11878578]
[1750879998201,0.33423741,2428.0,2427.7,4.11904785]
[1750879998406,0.2056,2428.0,2427.7,4.11904785]
[1750879999545,0.2056,2428.0,2427.8,4.11892936]
[1750879999849,0.2056,2428.0,2427.7,4.1190466]
[1750880000707,0.2056,2428.0,2427.6,4.11921078]
[1750880000909,0.12864378,2427.9,2427.6,4.11921078]
[1750880001107,0.71951629,2428.0,2427.6,4.11921078]
[1750880001426,0.12864559,2427.9,2427.6,4.11921078]
[1750880001621,0.71951629,2428.0,2427.6,4.11921078]
[1750880001811,0.12864456,2427.9,2427.6,4.11921078]
[1750880002019,0.71951629,2428.0,2427.6,4.11921078]
[1750880002216,0.12864434,2427.9,2427.6,4.11921078]
[1750880002411,0.71951629,2428.0,2427.5,0.2056]
[1750880002739,0.2056,2427.8,2427.4,4.32514067]
[1750880002928,0.2056,2427.8,2427.4,4.32515983]
[1750880005039,0.2056,2427.8,2427.5,4.11942203]
[1750880005811,0.2056,2427.8,2427.4,4.32517983]
[1750880006212,1.89425237,2427.7,2426.6,7.131]
[1750880006413,4.32514012,2427.5,2427.1,0.2056]
[1750880006614,0.12865119,2427.4,2427.1,0.2056]
[1750880006830,0.12866975,2427.3,2427.1,0.2056]
[1750880007144,4.32511316,2427.5,2427.1,0.2056]
[1750880007348,0.1286733,2427.4,2427.1,0.2056]
[1750880007547,0.1286733,2427.3,2427.1,0.2056]
[1750880007749,5.24755263,2427.5,2427.1,0.2056]
[1750880007911,0.12867411,2427.4,2427.1,0.2056]
[1750880008108,5.24755263,2427.5,2427.1,0.2056]
[1750880008344,5.24755263,2427.5,2427.0,4.12030864]
[1750880008345,1.06536647,2427.4,2426.8,7.127]
[1750880008542,4.2484786,2427.3,2426.9,0.2056]
[1750880008746,0.2056,2427.4,2426.9,0.2056]
[1750880008909,0.7799,2427.2,2426.5,0.7973]
[1750880009111,0.3342793,2427.1,2426.7,4.1207322]
[1750880009349,0.2056,2427.1,2426.7,4.1207322]
[1750880009921,0.2056,2427.1,2426.9,4.1204462]
[1750880010242,1.19096043,2427.3,2427.1,4.12013876]
[1750880010448,0.12867277,2427.2,2427.1,4.12013876]
[1750880010612,0.2056,2427.3,2427.1,4.12013876]
[1750880010818,0.12867251,2427.2,2427.1,4.12013876]
[1750880011920,12.528644,2427.7,2427.3,4.11965958]
[1750880011921,1.19065378,2427.6,2427.3,4.11965958]
[1750880012128,0.1286681,2427.5,2427.3,4.11965958]
[1750880012336,0.1286681,2427.4,2427.3,4.11965958]
[1750880012942,0.2056,2427.6,2427.4,4.11953914]
[1750880013142,0.12866216,2427.5,2427.4,4.11953914]
[1750880013522,5.10426985,2427.7,2427.0,0.7516]
[1750880013716,0.2056,2427.5,2427.2,4.11985637]
[1750880014138,0.12866434,2427.4,2427.2,4.11985637]
[1750880014445,0.2056,2427.5,2427.1,4.12014338]
[1750880014649,0.12866539,2427.4,2427.2,4.11996043]
[1750880014841,0.2056,2427.5,2427.3,4.11971177]
[1750880015052,0.2056,2427.7,2427.5,4.11946409]
[1750880015346,0.12865872,2427.6,2427.5,4.11946409]
[1750880015548,6.89622703,2428.2,2427.6,0.8066]
[1750880015861,1.319218,2428.1,2427.7,4.11898886]
[1750880016057,0.2056,2428.1,2427.8,4.11892695]
[1750880016231,0.12864418,2428.0,2427.8,4.11892695]
[1750880016432,0.2056,2428.1,2427.8,4.11892695]
[1750880016644,0.12864399,2428.0,2427.9,4.11878578]
[1750880017262,0.7816,2428.7,2427.9,4.96311705]
[1750880017437,0.12861709,2428.6,2428.5,4.11776816]
[1750880017740,0.12861709,2428.6,2428.4,4.32353773]
[1750880017741,0.12860008,2428.6,2428.4,0.2056]
[1750880017941,0.2056,2428.8,2428.4,0.2056]
[1750880018156,0.2056,2428.6,2428.2,4.32387625]
[1750880018353,0.2056,2428.6,2428.2,0.2056]
[1750880018354,0.128604,2428.5,2428.2,0.2056]
[1750880018557,0.2056,2428.6,2428.2,4.32377824]
[1750880018728,0.12860836,2428.5,2428.2,0.2056]
[1750880018932,0.12860836,2428.4,2428.1,4.11844163]
[1750880019164,0.2056,2428.4,2428.2,4.11818727]
[1750880019538,0.2056,2428.4,2428.3,4.11810731]
[1750880019846,0.2056,2428.4,2428.0,0.9653]
[1750880019847,0.2056,2428.4,2428.2,4.11818612]
[1750880020163,0.2056,2428.4,2428.0,5.08387096]
[1750880020164,0.2056,2428.4,2428.1,4.11835789]
[1750880020352,0.2056,2428.4,2428.2,4.11818165]
[1750880020561,5.10048877,2428.9,2428.3,4.11810731]
[1750880020862,0.2056,2428.7,2428.3,4.11810731]
[1750880021033,0.12861021,2428.6,2428.3,4.11810731]
[1750880021235,0.2056,2428.7,2428.3,4.11810731]
[1750880021461,0.12861042,2428.6,2428.3,4.11810731]
[1750880021681,0.2056,2428.7,2428.2,0.2056]
[1750880021970,0.12861371,2428.6,2428.3,4.11810478]
[1750880022147,0.2056,2428.7,2428.3,4.11810478]
[1750880022664,0.12861205,2428.6,2428.4,4.11793433]
[1750880022868,0.2056,2428.7,2428.3,4.11802191]
[1750880024036,0.2056,2428.7,2428.2,0.2056]
[1750880024037,0.2056,2428.7,2428.4,4.11792507]
[1750880024361,0.2056,2428.7,2428.4,4.11793116]
[1750880024580,0.7902,2428.2,2427.0,0.8252]
[1750880024740,0.7902,2428.2,2427.4,4.11955692]
[1750880024741,6.21606271,2428.1,2427.4,4.11955692]
[1750880025062,6.21606271,2428.1,2427.3,4.11971771]
[1750880025063,4.11880615,2427.9,2427.3,4.11971771]
[1750880025240,0.1286522,2427.8,2427.3,4.11971771]
[1750880025439,4.11870555,2428.0,2427.3,4.11971771]
[1750880025672,0.1286557,2427.9,2427.3,4.94365976]
[1750880025891,4.90848421,2428.2,2427.5,4.11933016]
[1750880026169,0.12864274,2428.1,2427.6,4.11918805]
[1750880026346,4.90848421,2428.2,2427.6,4.11918805]
[1750880026546,0.12863938,2428.1,2427.6,4.11918805]
[1750880026850,0.12863981,2428.0,2427.6,4.11918805]
[1750880027146,4.90848421,2428.2,2427.6,4.11918805]
[1750880027346,4.24709964,2428.1,2427.6,4.11917667]
[1750880027575,0.12864102,2428.0,2427.6,4.11917667]
[1750880027799,4.11845862,2428.1,2427.6,4.11917667]
[1750880027971,0.1286418,2428.0,2427.6,4.11917667]
[1750880028170,4.11845862,2428.1,2427.6,4.11917667]
[1750880028380,0.12864179,2428.0,2427.6,4.11917667]
[1750880028576,4.11845862,2428.1,2427.6,4.11917667]
[1750880028885,4.11845862,2428.1,2427.3,14.11974591]
[1750880028886,4.11905523,2427.8,2427.3,14.11974591]
[1750880029057,4.11888109,2427.9,2427.3,10.0]
[1750880029058,4.89222488,2427.7,2427.3,10.0]
[1750880029261,0.773,2427.7,2427.1,0.7554]
[1750880029463,0.773,2427.7,2427.1,10.0]
[1750880029692,4.11949895,2427.5,2427.1,10.0]
[1750880030578,4.89223533,2427.7,2426.9,10.7554]
[1750880030778,4.11931306,2427.6,2427.1,10.0]
[1750880030984,4.11954287,2427.5,2427.1,10.0]
[1750880031562,4.11948844,2427.5,2427.0,2.02794796]
[1750880031764,4.12006497,2427.2,2426.7,4.12071254]
[1750880032089,4.12016379,2427.1,2426.6,10.8177]
[1750880032264,4.12016379,2427.1,2426.6,14.93859003]
[1750880032466,4.8762893,2427.2,2426.7,4.12068947]
[1750880032667,0.7563,2427.2,2426.8,4.12063295]
[1750880033007,4.87630049,2427.2,2426.7,4.12072713]
[1750880033305,0.7563,2427.2,2426.6,4.93860741]
[1750880033464,0.7563,2427.2,2426.8,4.12064064]
[1750880033663,0.7563,2427.2,2426.9,4.12047083]
[1750880033887,2.7263,2427.5,2427.0,4.12017952]
[1750880034082,0.1286744,2427.4,2427.1,4.1200943]
[1750880034287,0.69743308,2427.4,2427.2,4.11995262]
[1750880034481,2.7263,2427.5,2427.2,4.11995262]
[1750880034681,0.2056,2427.3,2427.2,4.11995262]
[1750880035189,2.7263,2427.5,2426.7,16.24424621]
[1750880035384,2.9319,2427.5,2427.1,4.12014338]
[1750880035723,2.9319,2427.5,2427.2,4.11994216]
[1750880036064,2.9319,2427.5,2427.3,4.11973837]
[1750880036270,2.9319,2427.5,2427.1,4.12003021]
[1750880036500,2.9319,2427.5,2427.2,4.1199457]
[1750880037012,2.9319,2427.5,2427.0,0.2056]
[1750880037013,1.76519922,2427.5,2427.0,0.2056]
[1750880037312,1.76519922,2427.5,2426.9,4.12040875]
[1750880037313,0.2056,2427.2,2426.9,4.12040875]
[1750880037971,0.2056,2427.2,2427.0,4.12024439]
[1750880039373,0.2056,2427.2,2426.9,4.12039549]
[1750880039998,0.2056,2427.2,2427.0,4.12031314]
[1750880040394,0.2056,2427.2,2426.9,4.1204054]
[1750880040589,0.2056,2427.2,2427.0,4.12028561]
[1750880041274,4.87579226,2427.5,2426.9,4.12040937]
[1750880041475,0.2056,2427.1,2426.8,4.12056785]
[1750880041677,0.2056,2427.1,2426.9,4.12040516]
[1750880041876,0.2056,2427.1,2427.0,4.12031314]
[1750880042780,0.12867998,2427.4,2427.0,4.12031314]
[1750880042781,4.87580833,2427.5,2427.0,4.12031314]
[1750880042981,0.33427786,2427.4,2427.2,4.11997172]
[1750880043213,0.2056,2427.4,2427.0,4.12019774]
[1750880044296,0.2056,2427.4,2427.1,4.12013638]
[1750880044611,0.2056,2427.4,2427.2,4.11996041]
[1750880045079,0.2056,2427.7,2427.5,4.11941192]
[1750880045274,0.2056,2427.7,2427.6,4.11929477]
[1750880045475,0.7617,2428.0,2427.5,4.1194479]
[1750880045476,0.12865583,2427.9,2427.5,4.1194479]
[1750880045811,0.33425316,2427.8,2427.5,4.11946446]
[1750880046016,0.2056,2427.8,2427.5,4.11946446]
[1750880046307,0.2056,2427.8,2427.4,4.32515711]
[1750880046510,4.11915906,2427.7,2427.4,0.2056]
[1750880046687,0.2056,2427.8,2427.4,0.2056]
[1750880046895,4.32459853,2427.8,2427.4,0.2056]
[1750880047511,0.2056,2427.8,2427.4,4.32514394]
[1750880047912,4.32467079,2427.8,2427.4,4.32520661]
[1750880048503,4.32467079,2427.8,2427.4,0.2056]
[1750880048903,4.32467079,2427.8,2427.4,4.3252326]
[1750880049214,4.32467079,2427.8,2427.4,0.2056]
[1750880049906,0.2056,2427.5,2427.1,10.0]
[1750880050103,4.32515306,2427.5,2427.1,10.0]
[1750880050798,0.2056,2427.5,2427.1,14.1200927]
[1750880051005,0.2056,2427.5,2427.0,14.32581512]
[1750880051183,4.32507515,2427.5,2427.0,14.32581512]
[1750880051383,0.2056,2427.5,2427.1,4.12014338]
[1750880051584,4.32508939,2427.5,2427.1,4.12014338]
[1750880051786,4.32508939,2427.5,2427.0,14.32582163]
[1750880051980,4.1197534,2427.4,2427.0,0.2056]
[1750880052787,0.2056,2427.5,2427.0,0.2056]
[1750880052988,0.12867085,2427.4,2427.1,4.12005061]
[1750880053186,0.12867085,2427.3,2427.1,4.12005061]
[1750880053386,0.2056,2427.5,2427.2,4.11997363]
[1750880053588,0.12866989,2427.4,2427.3,4.11980389]
[1750880053914,0.2056,2427.8,2427.5,4.11944899]
[1750880054211,0.12865191,2427.7,2427.5,4.11944899]
[1750880054421,0.12865191,2427.6,2427.5,4.11944899]
[1750880054583,0.12865191,2427.6,2427.3,0.9715]
[1750880054784,0.2056,2427.8,2427.5,4.11946446]
[1750880055016,1.11397207,2427.7,2427.0,0.8306]
[1750880055220,0.2056,2427.4,2427.1,4.12014304]
[1750880055399,0.12865605,2427.3,2427.1,4.12014304]
[1750880055717,0.12865605,2427.2,2427.1,4.12014304]
[1750880056214,0.12867238,2427.2,2427.1,4.12014304]
[1750880056415,0.2056,2427.4,2427.2,4.11988843]
[1750880056596,0.12867162,2427.3,2426.9,0.2056]
[1750880056792,0.12867162,2427.2,2427.1,4.12013477]
[1750880056997,0.12867105,2427.2,2426.9,0.2056]
[1750880057189,0.12867297,2427.1,2426.8,14.12064146]
[1750880057392,0.2056,2427.2,2426.8,14.12064146]
[1750880057588,0.12868211,2427.1,2426.9,4.12035262]
[1750880057907,0.2056,2427.2,2426.9,4.12035262]
[1750880058118,0.12867845,2427.1,2427.0,4.12029851]
[1750880058804,0.12867845,2427.1,2427.0,4.94437467]
[1750880059001,1.19178127,2427.5,2427.3,4.11966834]
[1750880059196,0.12866526,2427.4,2427.3,4.11966834]
[1750880059514,0.12866526,2427.4,2427.2,0.2056]
[1750880059694,0.12866526,2427.3,2427.2,0.2056]
[1750880060097,0.12866526,2427.3,2427.1,4.11998561]
[1750880060295,0.12866526,2427.2,2427.1,4.11998561]
[1750880060493,0.12866526,2427.2,2427.1,5.03957364]
[1750880060695,0.12866526,2427.2,2427.1,5.24517364]
[1750880061020,0.2056,2427.5,2427.2,4.11989372]
[1750880061228,1.11493024,2427.4,2427.1,0.2056]
[1750880061522,0.2056,2427.5,2427.1,0.2056]
[1750880061523,4.32506844,2427.5,2427.1,0.2056]
[1750880061727,0.12867266,2427.4,2427.1,0.2056]
[1750880061935,0.12867266,2427.3,2427.1,4.32572459]
[1750880062136,0.12866816,2427.2,2427.1,4.32572459]
[1750880062315,0.12866816,2427.2,2427.1,5.17033891]
[1750880063707,0.12866812,2427.2,2427.1,5.17033891]
[1750880065030,0.2056,2427.5,2427.1,5.17034871]
[1750880065236,0.12866566,2427.4,2427.3,4.11980389]
[1750880065435,0.12866785,2427.4,2427.3,4.11980389]
[1750880065744,0.12866785,2427.4,2427.2,4.11987791]
[1750880065945,0.12866785,2427.3,2427.2,4.11987791]
[1750880066128,0.12866785,2427.3,2427.2,5.0488941]
[1750880067131,0.2056,2427.8,2427.5,4.1194173]
[1750880067325,1.11500062,2427.7,2427.6,4.11929477]
[1750880067530,0.12865283,2427.7,2427.4,0.2056]
[1750880067823,5.07990383,2427.9,2427.4,4.325157]
[1750880068030,5.07990383,2427.9,2427.6,4.11926094]
[1750880068031,1.11487804,2427.8,2427.6,4.11926094]
[1750880068238,0.12865434,2427.7,2427.4,0.2056]
[1750880068447,0.12865434,2427.6,2427.5,4.11944819]
[1750880069349,0.12865434,2427.6,2427.5,4.96390139]
[1750880069846,0.9611,2427.9,2427.6,4.11923467]
[1750880070023,0.1286513,2427.8,2427.4,4.32514514]
[1750880070231,0.1286513,2427.7,2427.5,4.11944564]
[1750880070431,0.12865356,2427.6,2427.5,4.11944564]
[1750880070833,0.12865356,2427.6,2427.2,0.92901619]
[1750880071041,0.12865356,2427.5,2427.3,4.11974769]
[1750880071252,0.2056,2427.7,2427.4,4.11963417]
[1750880071443,0.12865514,2427.6,2427.4,4.11963417]
[1750880071652,0.12865718,2427.5,2427.4,4.11963417]
[1750880071950,0.9611,2427.9,2427.6,4.11921795]
[1750880072136,0.12864605,2427.8,2427.6,4.11921795]
[1750880072325,0.12864605,2427.7,2427.6,4.11921795]
[1750880072526,0.12864656,2427.7,2427.6,4.11921795]
[1750880073053,0.12864656,2427.7,2427.5,4.11934796]
[1750880073261,0.12864656,2427.6,2427.3,4.11979066]
[1750880073576,0.12864656,2427.5,2427.3,0.2056]
[1750880073735,0.12865885,2427.4,2427.3,0.2056]
[1750880074619,0.95555885,2427.4,2427.3,0.2056]
[1750880074928,0.2056,2427.3,2426.9,0.2056]
[1750880075122,0.12865885,2427.2,2426.9,0.2056]
[1750880075322,0.12865885,2427.1,2426.9,10.2056]
[1750880075523,0.12865885,2427.0,2426.9,0.2056]
[1750880075723,0.12865885,2427.0,2426.5,7.8255]
[1750880075946,0.12865885,2427.0,2426.9,4.12048292]
[1750880076148,0.2056,2427.2,2426.9,4.12048292]
[1750880076454,0.2056,2427.2,2427.0,4.12026703]
[1750880076663,1.956,2427.6,2427.2,4.11988359]
[1750880076960,1.19176402,2427.5,2427.2,4.11988216]
[1750880077169,0.98616402,2427.4,2427.1,4.12011465]
[1750880077323,0.2056,2427.5,2427.2,4.1199523]
[1750880077528,0.98617184,2427.4,2427.2,4.1198796]
[1750880077724,0.2056,2427.5,2427.2,4.1198796]
[1750880077956,0.98615463,2427.4,2427.3,4.11980389]
[1750880078120,2.7089,2427.6,2427.3,4.11965463]
[1750880078325,2.7089,2427.6,2427.3,4.1197779]
[1750880078735,0.7529,2427.6,2427.4,4.11946776]
[1750880079033,8.5697,2427.9,2427.5,4.11944292]
[1750880079239,1.19170248,2427.8,2427.5,4.11944292]
[1750880079439,0.98610248,2427.7,2427.5,4.11944292]
[1750880079644,0.2056,2427.8,2427.6,4.11929477]
[1750880079852,0.98607898,2427.7,2427.6,4.11929477]
[1750880080562,1.917,2428.4,2427.6,4.11929477]
[1750880080860,0.2056,2428.2,2427.9,4.11868818]
[1750880081045,0.12863208,2428.1,2427.9,4.11868818]
[1750880081370,0.12863208,2428.0,2427.9,4.11868818]
[1750880082372,0.2056,2428.2,2428.0,4.11857691]
[1750880082554,0.12863308,2428.1,2428.0,4.11857691]
[1750880082754,0.12863308,2428.1,2428.0,5.16846342]
[1750880082956,1.917,2428.4,2428.3,4.11810731]
[1750880083270,0.12862087,2428.4,2428.3,4.11810731]
[1750880083466,0.12862087,2428.4,2428.1,4.11835899]
[1750880083467,0.12862087,2428.4,2428.0,1.04988651]
[1750880083630,0.2056,2428.5,2428.3,4.11810731]
[1750880083830,0.2056,2428.5,2428.4,4.11793773]
[1750880084137,0.8037,2428.7,2428.5,4.11770888]
[1750880084138,1.1898511,2428.7,2428.5,4.11770888]
[1750880084327,0.12860759,2428.6,2428.3,4.86926134]
[1750880084529,0.12860759,2428.5,2428.2,4.32379041]
[1750880084757,0.12860759,2428.4,2428.2,4.32378736]
[1750880084927,1.18935612,2428.7,2428.3,4.1180917]
[1750880085127,0.12861651,2428.6,2428.3,4.1180917]
[1750880085470,0.12861651,2428.5,2428.3,4.1180917]
[1750880085765,0.12861651,2428.4,2428.3,4.1180917]
[1750880085939,0.12861651,2428.4,2428.3,4.9622856]
[1750880086120,0.2056,2428.7,2428.3,0.8441939]
[1750880086324,0.12861325,2428.6,2428.5,4.11776816]
[1750880086562,0.2056,2428.7,2428.5,4.11776816]
[1750880086725,0.12860653,2428.6,2428.5,4.11776816]
[1750880086925,0.12860653,2428.6,2428.3,4.96221259]
[1750880086926,0.12860315,2428.6,2428.3,4.96221259]
[1750880087177,0.2056,2428.7,2428.3,0.8441939]
[1750880087331,0.12860532,2428.6,2428.4,4.1178443]
[1750880087529,0.2056,2428.7,2428.3,4.11804288]
[1750880087734,0.2056,2428.7,2428.2,4.32377021]
[1750880087735,0.12860739,2428.6,2428.2,4.32374462]
[1750880088070,4.32305801,2428.7,2428.6,14.11759861]
[1750880088071,0.2056,2428.7,2428.6,14.11759861]
[1750880088254,0.95309826,2428.7,2428.3,4.11796991]